Cogmind - Beta 13 *** ADVENTURER MODE // 2024.04.04 @ 22:55:55 Player: Doske Result: Self-destructed Performance ------------- Evolutions (6) 3000 Regions Visited (11) 2200 Robots Destroyed (110) 550 Value Destroyed (2371) 2371 Prototype IDs (4) 80 Alien Tech Used (0) 0 Bonus (972) 972 TOTAL SCORE: 9173 Bonus ------- High Alert Combat Kills 69 Follower Combat Kills 20 Met Warlord at Base 500 MAIN.C Attacked Warlord 500 Friendly Fire -117 Cogmind --------- Core Integrity 1055/1150 Matter 300/300 Energy 149/150 System Corruption 0% Temperature Cool (3) Movement Flying (34) Location -4/Upper Caves Parts ------- > --- POWER (2) -------- Micro Fission Core > --- PROPULSION (7) --- Nuclear Pulse Array Nuclear Pulse Array Impulse Thruster > --- UTILITY (7) ------ Medium Storage Unit Structural Scanner Enhanced Optical Array Seismic Detector Improved Hacking Suite Improved Hacking Suite > --- WEAPON (3) ------- Advanced Datajack > --- INVENTORY (10) --- Improved Ion Engine Light Nuclear Core Experimental Propulsion Shielding Layered Heavy Armor Plating Authchip [R/NC] Vortex Rifle (35) Improved Proton Missile Launcher Peak State ------------ > --- POWER ------------ Light Ion Engine Micro Fission Core > --- PROPULSION ------- Nuclear Pulse Array Nuclear Pulse Array Nuclear Pulse Array Impulse Thruster > --- UTILITY ---------- Advanced Visual Processing Unit Advanced Terrain Scan Processor Layered Heavy Armor Plating Improved Hacking Suite Improved Hacking Suite Improved Hacking Suite > --- WEAPON ----------- Improved Proton Missile Launcher Advanced Datajack Power Sword > --- INVENTORY -------- Light Nuclear Core Microactuators Reaction Control System Authchip [R/NC] Vortex Rifle [Rating: 103] Favorites ----------- Power Light Ion Engine Engine Light Ion Engine Power Core Micro Fission Core Propulsion Light Treads Treads Light Treads Wheel Wheel Flight Unit Nuclear Pulse Array Utility Signal Interpreter Device Microactuators Storage Large Storage Unit Processor Signal Interpreter Hackware Improved Hacking Suite Protection Improved Medium Armor Plating Weapon Grenade Launcher Energy Gun Vortex Rifle Energy Cannon Heavy Ion Cannon Ballistic Gun Assault Rifle Launcher Grenade Launcher Slashing Weapon Great Axe Special Melee Weapon Dirty Datajack Build | -11 -10 -10 -10 -7 -5 -5 -5 -5 -4 -4 -4 ------- Run | Yrd Mat Min Sub Rec Fac Upp Upp War Pro Fac Upp Slots Evolved 12 | . . . . . 10 . . . . 2 . Power 1 | . . . . . 1 . . . . . . Propulsion 5 | . . . . . 4 . . . . 1 . Utility 5 | . . . . . 4 . . . . 1 . Weapon 1 | . . . . . 1 . . . . . . Parts Attached 82 | 5 15 1 3 10 17 1 1 4 6 19 . Power 16 | 1 1 1 1 1 2 1 1 1 1 5 . Engine 13 | 1 1 1 1 1 2 . 1 . 1 4 . Core 3 | . . . . . . 1 . 1 . 1 . Reactor . | . . . . . . . . . . . . Propulsion 19 | 2 5 . . 4 5 . . . . 3 . Treads 11 | 2 3 . . 4 2 . . . . . . Leg . | . . . . . . . . . . . . Wheel 2 | . 2 . . . . . . . . . . Hover . | . . . . . . . . . . . . Flight 6 | . . . . . 3 . . . . 3 . Utility 23 | . 5 . . 2 8 . . . . 8 . Device 5 | . . . . . 2 . . . . 3 . Storage 7 | . 4 . . 2 . . . . . 1 . Processor 5 | . 1 . . . 2 . . . . 2 . Hackware 3 | . . . . . 2 . . . . 1 . Protection 3 | . . . . . 2 . . . . 1 . Artifact . | . . . . . . . . . . . . Weapon 24 | 2 4 . 2 3 2 . . 3 5 3 . Energy Gun 2 | . . . . . . . . 1 1 . . Energy Cannon 3 | . . . . . 1 . . 1 1 . . Ballistic Gun 4 | 2 2 . . . . . . . . . . Ballistic Cannon . | . . . . . . . . . . . . Launcher 7 | . 2 . 2 1 . . . . 1 1 . Special Weapon . | . . . . . . . . . . . . Impact Weapon . | . . . . . . . . . . . . Slashing Weapon 3 | . . . . 1 . . . 1 1 . . Piercing Weapon . | . . . . . . . . . . . . Special Melee Weapon 5 | . . . . 1 1 . . . 1 2 . Unidentified Prototypes 1 | . . . . . . . . 1 . . . Parts Lost 14 | . 2 . 2 . 3 . . . 3 1 3 Power 3 | . . . . . . . . . 2 1 . Propulsion 2 | . . . . . 1 . . . . . 1 Utility 4 | . . . . . 2 . . . 1 . 1 Weapon 5 | . 2 . 2 . . . . . . . 1 Highest Loss Streak 3 | . 1 . 2 . 3 . . . 2 1 2 To Critical Strikes . | . . . . . . . . . . . . Average Slot Usage (%) 88 | . 93 99 97 91 76 82 82 81 78 78 70 Engine 10 | . 14 14 14 14 10 5 5 2 3 4 . Core 1 | . . . . . . 4 5 7 5 4 5 Treads 17 | . 27 28 28 28 18 . . . . . . Flight 6 | . . . . . 2 17 17 17 17 20 16 Device 1 | . . . . . 3 5 5 5 5 3 10 Storage 8 | . 12 14 14 13 4 . . . . 1 5 Processor 12 | . 12 14 14 14 11 11 11 11 11 10 5 Hackware 4 | . . . . . 1 11 11 11 11 13 14 Protection 1 | . . . . . 3 5 5 5 3 2 . Ballistic Gun 6 | . 17 14 12 . . . . . . . . Launcher 7 | . 7 13 14 8 5 5 5 5 4 5 1 Slashing Weapon 3 | . . . . 7 5 5 5 4 5 5 5 Special Melee Weapon 1 | . . . . 4 . 5 5 2 . 3 5 Naked Turns . | . . . . . . . . . . . . Heaviest Build 89 | 8 89 28 30 37 67 30 25 35 33 44 29 Greatest Support 88 | 40 40 40 40 48 88 39 39 39 39 46 40 Greatest Overweight (x) 2 | . 2 . . . . . . . . 1 . Average Overweight (x) . | . . . . . . . . . . . . Largest Inventory Capacity 25 | 5 25 15 15 15 15 5 5 5 5 10 10 Average Capacity 10 | 5 10 15 15 14 13 5 5 5 5 6 10 Most Carried 15 | 4 11 14 15 15 15 5 5 5 5 7 8 Average Carried 8 | 2 6 11 12 11 11 4 4 4 4 5 7 Final Capacity 15 | 5 15 15 15 15 5 5 5 5 5 10 10 Final Carried 14 | 4 11 14 10 14 5 5 5 5 5 7 8 Class Distribution -------------------- 60% | Mutant 20% | Hacker-Mutant 12% | Hacker-Sprinter 5% | Scavenger-Mutant Dominant Class ---------------- Mutant | -10/Materials Mutant | -10/Mines Mutant | -10/Subcaves Mutant | -7/Recycling Scavenger-Mutant | -5/Factory Hacker-Mutant | -5/Upper Caves Hacker-Mutant | -5/Upper Caves Hacker-Mutant | -5/Warlord Hacker-Mutant | -4/Proximity Caves Hacker-Sprinter | -4/Factory Hacker-Mutant | -4/Upper Caves Resources | -11 -10 -10 -10 -7 -5 -5 -5 -5 -4 -4 -4 ----------- Run | Yrd Mat Min Sub Rec Fac Upp Upp War Pro Fac Upp Matter Collected 1805 | 104 734 61 157 120 147 125 10 40 110 180 17 Remotely . | . . . . . . . . . . . . Salvage Created 3613 | 119 923 134 6 800 507 126 25 . 212 623 138 Parts 215 | 9 64 6 4 25 35 10 . . 13 43 6 Haulers Intercepted 2 | . 2 . . . . . . . . . . Recyclers Shooed 3 | . 1 . . . 2 . . . . . . Parts Field Recycled . | . . . . . . . . . . . . Retrieved Matter . | . . . . . . . . . . . . Parts Self-Destructed 39 | . . . 8 . . 6 7 . 12 . 6 Prevented . | . . . . . . . . . . . . Kills | -11 -10 -10 -10 -7 -5 -5 -5 -5 -4 -4 -4 ------- Run | Yrd Mat Min Sub Rec Fac Upp Upp War Pro Fac Upp Combat Hostiles Destroyed 60 | . 17 2 2 1 11 6 1 . 10 5 5 Melee 19 | . . . . 1 . 1 1 . 7 5 4 Guns 14 | . 14 . . . . . . . . . . Cannons 1 | . . . . . 1 . . . . . . AOE 26 | . 3 2 2 . 10 5 . . 3 . 1 Classes Destroyed 12 | 2 6 . 1 1 1 . . . 1 . . Worker 9 | . 3 1 . . 3 . . . . 2 . Builder 11 | . 2 . . 2 5 . . . . 2 . Tunneler 6 | 2 . 1 . . . . . . . 3 . Hauler 2 | . 2 . . . . . . . . . . Recycler 16 | 1 2 1 . 9 1 . . . . 2 . Drone 1 | . . . . . . . . . 1 . . Turret 2 | . . . 2 . . . . . . . . Watcher 3 | . 2 . . . 1 . . . . . . Swarmer 38 | . 6 2 2 . 3 7 1 . 8 4 5 Grunt 18 | . 11 . . . 7 . . . . . . Brawler 1 | . . . . . 1 . . . . . . Sentry 3 | . . . . 1 . . . . 1 1 . Best Kill Streak 11 | 2 4 3 2 5 11 5 1 . 5 7 3 Combat Bots Only 6 | . 3 2 2 1 6 5 1 . 5 4 3 Max Kills in Single Turn 6 | 1 2 2 1 2 6 3 1 . 1 1 1 Gunslinging . | . . . . . . . . . . . . Exploded 3 | . 1 1 1 . 3 3 . . 1 . 1 Melee 1 | . . . . 1 . 1 1 . 1 1 1 Uniques/NPCs Destroyed . | . . . . . . . . . . . . Combat | -11 -10 -10 -10 -7 -5 -5 -5 -5 -4 -4 -4 -------- Run | Yrd Mat Min Sub Rec Fac Upp Upp War Pro Fac Upp Hostile Shots Fired 449 | . 110 23 35 30 51 21 12 20 39 33 75 Missed 187 | . 28 11 18 9 16 14 7 13 17 9 45 Damage Taken 2782 | . 661 83 150 116 552 64 86 113 309 321 327 Core 278 | . 88 6 9 16 35 . . . 29 37 58 Absorbed by Shields . | . . . . . . . . . . . . Ignored by Resistances 834 | . 212 29 42 44 159 18 23 31 89 90 97 Regen/Repaired (Parts) 38 | . . . . . . . . 17 . 21 . Core Remaining (%) 81 | 100 . . . 52 . . . . 93 . . Volleys Fired 160 | 4 107 12 14 2 12 2 . . 5 . 2 Largest 2 | 2 2 1 1 1 2 1 . . 1 . 1 Hottest 95 | 40 40 30 30 30 95 30 . . 30 . 43 Shots Fired 194 | 8 134 12 14 2 15 2 . . 5 . 2 Gun 147 | 8 129 8 2 . . . . . . . . Cannon 6 | . . . . . 6 . . . . . . Launcher 41 | . 5 4 12 2 9 2 . . 5 . 2 Special . | . . . . . . . . . . . . Kinetic 147 | 8 129 8 2 . . . . . . . . Thermal 6 | . . . . . 6 . . . . . . Explosive 39 | . 5 4 12 2 9 2 . . 5 . . Electromagnetic 2 | . . . . . . . . . . . 2 Robot Hit Streak 19 | 2 19 14 2 1 7 . . . 2 . . Robot Miss Streak 5 | 1 5 1 1 . 1 . . . 1 . . Penetration Max . | . . . . . . . . . . . . Secondary Targets . | . . . . . . . . . . . . Shots Hit Robots 223 | 4 93 6 2 18 18 12 9 . 25 28 8 Core Hits 176 | 4 47 5 8 14 45 10 5 . 13 15 10 Critical Kills 1 | . 1 . . . . . . . . . . Critical Parts Destroyed . | . . . . . . . . . . . . Critical Strikes 4 | . 1 . . 1 . . . . 1 . 1 Destroy 1 | . 1 . . . . . . . . . . Sever 3 | . . . . 1 . . . . 1 . 1 Melee Attacks 186 | . . . . 17 10 12 9 4 30 95 9 Impact . | . . . . . . . . . . . . Slashing 160 | . . . . 17 10 1 1 4 29 89 9 Piercing 20 | . . . . . . 11 8 . 1 . . Sneak Attacks 35 | . . . . 12 7 5 1 . . 10 . Combat Hostiles 6 | . . . . 1 . 4 1 . . . . Follow-up Attacks 1 | . . . . . . . . . 1 . . Damage Inflicted 9702 | 49 1421 225 375 1288 2695 335 102 . 1242 1379 591 Guns 1270 | 49 1134 77 10 . . . . . . . . Cannons 54 | . . . . . 54 . . . . . . Explosions 3747 | . 253 147 365 189 2050 213 . . 268 . 262 Melee 4581 | . . . . 1099 576 122 102 . 974 1379 329 Ramming 50 | . 34 1 . . 15 . . . . . . Kinetic 1270 | 49 1134 77 10 . . . . . . . . Thermal 1018 | . . . . . 1018 . . . . . . Explosive 2521 | . 253 147 365 189 1086 213 . . 268 . . Electromagnetic 262 | . . . . . . . . . . . 262 Impact . | . . . . . . . . . . . . Slashing 4527 | . . . . 1099 576 82 90 . 972 1379 329 Piercing 54 | . . . . . . 40 12 . 2 . . Highest Corruption 1 | . . . . . . . 1 1 . . . Average Corruption 1 | . . . . . . . 1 1 . . . Corruption Purged . | . . . . . . . . . . . . Corruption Blocked . | . . . . . . . . . . . . Overload Shots . | . . . . . . . . . . . . Overflow Damage 664 | . . . 18 176 231 . 38 . 51 137 13 Projectiles . | . . . . . . . . . . . . Explosions 98 | . . . 18 2 67 . . . 11 . . Melee 566 | . . . . 174 164 . 38 . 40 137 13 Knockbacks . | . . . . . . . . . . . . Impact . | . . . . . . . . . . . . Kinetic . | . . . . . . . . . . . . Secondary . | . . . . . . . . . . . . Self-Inflicted Damage 199 | . . 18 61 . 91 . . . 29 . . Shots 11 | . . 1 3 . 6 . . . 1 . . Rammed 8 | . 4 1 . 1 2 . . . . . . Targets Rammed 9 | . 4 1 . 1 3 . . . . . . Kicked . | . . . . . . . . . . . . Crushed 1 | . . . . . 1 . . . . . . Highest Temperature 35 | . 8 . . . 27 25 35 . . 26 6 Average Temperature 9 | . 2 . . . 13 6 20 . . 8 6 Received Heat Transfer 654 | . 408 . 6 42 123 . . . 9 45 21 Siege Activations . | . . . . . . . . . . . . Robots Corrupted . | . . . . . . . . . . . . Combat Hostiles . | . . . . . . . . . . . . Parts Fried . | . . . . . . . . . . . . Impact Corruptions . | . . . . . . . . . . . . Robots Melted . | . . . . . . . . . . . . Combat Hostiles . | . . . . . . . . . . . . Parts Melted . | . . . . . . . . . . . . Heat Transferred 674 | . . . . . 674 . . . . . . Parts Sabotaged . | . . . . . . . . . . . . Parts Stolen . | . . . . . . . . . . . . Parts Stripped . | . . . . . . . . . . . . Power Chain Reactions . | . . . . . . . . . . . . Alert | -11 -10 -10 -10 -7 -5 -5 -5 -5 -4 -4 -4 ------- Run | Yrd Mat Min Sub Rec Fac Upp Upp War Pro Fac Upp Peak Influence 694 | 15 259 73 . 266 694 . . . . 512 . Initial 268 | . 8 . . 224 200 . . . . 268 . Average 153 | 5 75 18 . 122 450 . . . . 343 . Maximum Alert Level 2 | . 1 . . 1 2 . . . . 2 . Low Security (%) 63 | 100 87 100 . 67 . . . . . 5 . Level 1 25 | . 12 . . 32 34 . . . . 67 . Level 2 10 | . . . . . 65 . . . . 27 . Level 3 . | . . . . . . . . . . . . Level 4 . | . . . . . . . . . . . . Level 5 . | . . . . . . . . . . . . High Security . | . . . . . . . . . . . . Max Security . | . . . . . . . . . . . . Squads Dispatched 12 | . 3 . . . 2 . . . . 7 . Investigation 6 | . 3 . . . . . . . . 3 . Extermination 1 | . . . . . . . . . . 1 . Reinforcement 3 | . . . . . 1 . . . . 2 . Assault 2 | . . . . . 1 . . . . 1 . Garrison . | . . . . . . . . . . . . Intercept . | . . . . . . . . . . . . Searches Triggered . | . . . . . . . . . . . . Construction Impeded 1 | . . . . . 1 . . . . . . Haulers Reinforced . | . . . . . . . . . . . . Active Scanning Responses . | . . . . . . . . . . . . Cargo Convoy Interrupts . | . . . . . . . . . . . . Stealth | -11 -10 -10 -10 -7 -5 -5 -5 -5 -4 -4 -4 --------- Run | Yrd Mat Min Sub Rec Fac Upp Upp War Pro Fac Upp Distress Signals 2 | . 2 . . . . . . . . . . Communications Jammed 4 | . . . . . 4 . . . . . . Distress Signals 4 | . . . . . 4 . . . . . . Times Spotted 174 | . 33 3 18 1 20 11 8 26 13 16 25 Peak Tracking Total 15 | . 5 3 3 1 7 5 6 12 5 5 15 Tactical Retreats 19 | . 2 . 2 . 1 1 3 1 1 3 5 Traps | -11 -10 -10 -10 -7 -5 -5 -5 -5 -4 -4 -4 ------- Run | Yrd Mat Min Sub Rec Fac Upp Upp War Pro Fac Upp Traps Triggered 5 | . 3 . 1 . . . . . . 1 . Indirectly . | . . . . . . . . . . . . Trap Hack Attempts . | . . . . . . . . . . . . Triggered . | . . . . . . . . . . . . Disarmed . | . . . . . . . . . . . . Reprogrammed . | . . . . . . . . . . . . Reused . | . . . . . . . . . . . . Traps Extracted . | . . . . . . . . . . . . Installed . | . . . . . . . . . . . . Triggered 13 | . . . . . . . . 12 . . 1 Machines | -11 -10 -10 -10 -7 -5 -5 -5 -5 -4 -4 -4 ---------- Run | Yrd Mat Min Sub Rec Fac Upp Upp War Pro Fac Upp Machines Disabled 18 | . 1 . 4 . 10 . . . . 2 1 Max in Single Turn 10 | . 1 . 3 . 10 . . . . 1 1 Garrison Access 1 | . . . . . . . . . . 1 . Machines Repaired . | . . . . . . . . . . . . Machines Dismantled . | . . . . . . . . . . . . Machines Sabotaged . | . . . . . . . . . . . . Overloaded Fab Kills . | . . . . . . . . . . . . Hacking | -11 -10 -10 -10 -7 -5 -5 -5 -5 -4 -4 -4 --------- Run | Yrd Mat Min Sub Rec Fac Upp Upp War Pro Fac Upp Machines Accessed 31 | . 8 . . 10 . . . 6 . 7 . Terminals 16 | . 7 . . 4 . . . . . 5 . Fabricators . | . . . . . . . . . . . . Repair Stations 2 | . 1 . . . . . . . . 1 . Recycling Units 6 | . . . . 6 . . . . . . . Scanalyzers . | . . . . . . . . . . . . Garrison Access 1 | . . . . . . . . . . 1 . Total Hacks 66 | . 19 . . 25 . . . 7 . 15 . Successful 44 | . 10 . . 15 . . . 7 . 12 . Failed 22 | . 9 . . 10 . . . . . 3 . Catastrophic 5 | . 2 . . 2 . . . . . 1 . Database Lockouts . | . . . . . . . . . . . . Manual 35 | . 19 . . 6 . . . 2 . 8 . Terminals 36 | . 17 . . 9 . . . . . 10 . Fabricators . | . . . . . . . . . . . . Repair Stations 4 | . 2 . . . . . . . . 2 . Recycling Units 16 | . . . . 16 . . . . . . . Scanalyzers . | . . . . . . . . . . . . Garrison Access 3 | . . . . . . . . . . 3 . Terminal Hacks 30 | . 10 . . 6 . . . 7 . 7 . Record 12 | . 2 . . 4 . . . 6 . . . Prototype ID Bank 2 | . 2 . . . . . . . . . . Open Door 1 | . . . . . . . . 1 . . . Open DSF 1 | . . . . . . . . . . 1 . Terminal Index 1 | . 1 . . . . . . . . . . Alert Level 1 | . . . . . . . . . . 1 . Unreport Threat 1 | . . . . . . . . . . 1 . Locate Traps 1 | . 1 . . . . . . . . . . Hauler Manifests 6 | . 2 . . 2 . . . . . 2 . Registered Components 1 | . . . . . . . . . . 1 . Zone Layout 3 | . 2 . . . . . . . . 1 . Fabricator Hacks . | . . . . . . . . . . . . Repair Station Hacks 2 | . . . . . . . . . . 2 . Scan Component 1 | . . . . . . . . . . 1 . Repair 1 | . . . . . . . . . . 1 . Recycling Unit Hacks 9 | . . . . 9 . . . . . . . Recycle Component 2 | . . . . 2 . . . . . . . Process 1 | . . . . 1 . . . . . . . Report Inventory 2 | . . . . 2 . . . . . . . Retrieve Components 4 | . . . . 4 . . . . . . . Scanalyzer . | . . . . . . . . . . . . Garrison Access Hacks 2 | . . . . . . . . . . 2 . Unlock Access 1 | . . . . . . . . . . 1 . Coupler Status 1 | . . . . . . . . . . 1 . Unauthorized Hacks 1 | . . . . . . . . . . 1 . Terminals . | . . . . . . . . . . . . Fabricators . | . . . . . . . . . . . . Repair Stations . | . . . . . . . . . . . . Recycling Units . | . . . . . . . . . . . . Scanalyzers . | . . . . . . . . . . . . Garrison Access 1 | . . . . . . . . . . 1 . Intercept 1 | . . . . . . . . . . 1 . Data Cores Recovered . | . . . . . . . . . . . . Used . | . . . . . . . . . . . . Hacking Detections 20 | . 6 . . 8 . . . . . 6 . Full Trace Events 11 | . 4 . . 4 . . . . . 3 . Feedback Events . | . . . . . . . . . . . . Feedback Blocked . | . . . . . . . . . . . . Robot Schematics Acquired . | . . . . . . . . . . . . Robots Built . | . . . . . . . . . . . . Authchips . | . . . . . . . . . . . . Time . | . . . . . . . . . . . . Total Robot Build Rating . | . . . . . . . . . . . . Part Schematics Acquired . | . . . . . . . . . . . . Parts Built . | . . . . . . . . . . . . Authchips . | . . . . . . . . . . . . Time . | . . . . . . . . . . . . Total Part Build Rating . | . . . . . . . . . . . . Parts Repaired 1 | . . . . . . . . . . 1 . Time 62 | . . . . . . . . . . 62 . Parts Recycled 2 | . . . . 2 . . . . . . . Recycled Matter 24 | . . . . 24 . . . . . . . Retrieved Matter . | . . . . . . . . . . . . Retrieved Components 10 | . . . . 10 . . . . . . . Parts Scanalyzed . | . . . . . . . . . . . . Part Schematics Acquired . | . . . . . . . . . . . . Parts Damaged . | . . . . . . . . . . . . Bothacking | -11 -10 -10 -10 -7 -5 -5 -5 -5 -4 -4 -4 ------------ Run | Yrd Mat Min Sub Rec Fac Upp Upp War Pro Fac Upp Used RIF Installer . | . . . . . . . . . . . . Robots Hacked . | . . . . . . . . . . . . Non-combat . | . . . . . . . . . . . . Combat . | . . . . . . . . . . . . Robot Hacks Applied . | . . . . . . . . . . . . Relay Couplers Released 1 | . . . . . . . . . . 1 . Machine Destruction 1 | . . . . . . . . . . 1 . Fabnet Peak Effective % . | . . . . . . . . . . . . Robots Rewired . | . . . . . . . . . . . . Allies Hacked . | . . . . . . . . . . . . Hacks Repelled . | . . . . . . . . . . . . Allies | -11 -10 -10 -10 -7 -5 -5 -5 -5 -4 -4 -4 -------- Run | Yrd Mat Min Sub Rec Fac Upp Upp War Pro Fac Upp Total Allies 4 | . . . . . . 4 . . . . . Largest Group 3 | . . . . . . 3 . . . . . Highest-Rated Group 36 | . . . . . . 36 . . . . . Highest-Rated Ally 12 | . . . . . . 12 . . . . . Total Orders . | . . . . . . . . . . . . Ally Attacks 9 | . . . . . . 9 . . . . . Total Damage 89 | . . . . . . 89 . . . . . Kills 1 | . . . . . . 1 . . . . . Allies Corrupted . | . . . . . . . . . . . . Allies Melted . | . . . . . . . . . . . . Intel | -11 -10 -10 -10 -7 -5 -5 -5 -5 -4 -4 -4 ------- Run | Yrd Mat Min Sub Rec Fac Upp Upp War Pro Fac Upp Robot Analysis Total . | . . . . . . . . . . . . Derelict Logs Recovered 7 | . . 1 1 . . 2 1 . 1 . 1 Drone Launches . | . . . . . . . . . . . . Drone Recoveries . | . . . . . . . . . . . . Exploration | -11 -10 -10 -10 -7 -5 -5 -5 -5 -4 -4 -4 ------------- Run | Yrd Mat Min Sub Rec Fac Upp Upp War Pro Fac Upp Turns Passed 7306 | 68 1602 997 508 1231 470 197 232 655 325 892 129 Spaces Moved 7233 | 30 808 554 285 700 338 520 552 1367 621 1183 275 Core 4 | 4 . . . . . . . . . . . Treads 2550 | 26 781 554 285 700 204 . . . . . . Legs . | . . . . . . . . . . . . Wheels 27 | . 27 . . . . . . . . . . Hover . | . . . . . . . . . . . . Flight 4652 | . . . . . 134 520 552 1367 621 1183 275 Fastest Speed 31 | 50 80 160 160 160 34 34 34 34 34 31 31 Average Speed 78 | 145 159 160 160 160 110 34 34 34 34 31 33 Slowest Speed 320 | 160 320 160 160 160 160 34 34 34 34 114 34 Overloaded Moves . | . . . . . . . . . . . . Propulsion Burnouts . | . . . . . . . . . . . . Robots Hopped 2 | . . . . . . 1 1 . . . . Cave-ins Triggered . | . . . . . . . . . . . . Exploration Rate (%) 57 | 3 99 94 16 96 10 61 60 91 78 18 66 Regions Visited 11 Branch Regions 8 Pre-discovered Areas 3 | . . 1 2 . . . . . . . . Known Exits Taken 8 | . 1 1 1 1 1 1 1 1 . . . Unknown Exits Taken 3 | 1 . . . . . . . . 1 1 . Scrap Searched . | . . . . . . . . . . . . Spaces Dug 76 | . . 12 . . 2 . . . 2 59 1 Terrain Destroyed 219 | . 7 26 21 15 58 . . . 32 59 1 Melee 64 | . . . . . 2 . . . 2 59 1 Projectile 2 | . . . . . 2 . . . . . . AOE 153 | . 7 26 21 15 54 . . . 30 . . Terrain Rammed . | . . . . . . . . . . . . Walls Destroyed . | . . . . . . . . . . . . Machines Disabled . | . . . . . . . . . . . . Actions | -11 -10 -10 -10 -7 -5 -5 -5 -5 -4 -4 -4 --------- Run | Yrd Mat Min Sub Rec Fac Upp Upp War Pro Fac Upp Total 8489 | 47 991 652 326 780 408 543 598 1556 701 1590 297 Wait 597 | . 14 82 14 13 . 6 36 165 41 215 11 Move 7218 | 29 807 553 284 699 337 517 549 1366 620 1182 275 Hop 2 | . . . . . . 1 1 . . . . Pick Up 123 | 9 25 2 4 24 15 2 1 8 2 31 . Fast Attach 2 | . . . . 2 . . . . . . . Attach 64 | 5 12 . 2 4 16 1 . 3 2 19 . Detach 19 | . 5 1 . 2 2 . . 1 . 8 . Swap 17 | . 3 1 1 4 1 . 1 1 4 1 . Drop 72 | . 14 . 7 7 12 2 1 8 . 21 . Fire 160 | 4 107 12 14 2 12 2 . . 5 . 2 Melee 183 | . . . . 17 10 12 9 4 27 95 9 Ram . | . . . . . . . . . . . . Kick . | . . . . . . . . . . . . Crush 9 | . 4 1 . 1 3 . . . . . . Escape Stasis 18 | . . . . . . . . . . 18 . Rewire 5 | . . . . 5 . . . . . . . Trap . | . . . . . . . . . . . . Miscellaneous . | . . . . . . . . . . . . Route ------- -11/Scrapyard -10/Materials (discovered 5 exits: *Mat x3 / *Min x2) -10/Mines (discovered 3 exits: *Mat x2 / *Sub) -10/Subcaves -7/Recycling -5/Factory -5/Upper Caves -5/Upper Caves -5/Warlord -4/Proximity Caves -4/Factory (discovered 3 exits: Res / [*Upp x2]) -4/Upper Caves History --------- Turn | Location | Event 6 | -11/Scrapyard | Discovered new exit (range 16) 69 | -11/Scrapyard | Entered Materials 255 | -10/Materials | Discovered new exit (range 10) 325 | -10/Materials | Build established: Mutant 384 | -10/Materials | Identified exit to Mines 900 | -10/Materials | Discovered exit to Mines (range 14) 902 | -10/Materials | Discovered new exit (range 5) 908 | -10/Materials | Identified exit to Materials 1304 | -10/Materials | Discovered exit to Materials (range 10) 1420 | -10/Materials | Discovered exit to Materials (range 8) 1671 | -10/Materials | Entered Mines 1688 | -10/Mines | Met a Derelict bent on vengeance 1861 | -10/Mines | Discovered exit to Materials (range 8) 1862 | -10/Mines | Learned location of Recycling (-7) 1974 | -10/Mines | Discovered exit to Materials (range 5) 2286 | -10/Mines | Discovered new exit (range 5) 2309 | -10/Mines | Identified exit to Subcaves 2668 | -10/Mines | Entered Subcaves 2670 | -10/Subcaves | Shifting Twisted Machinery released Sub. Beam Cannon 2769 | -10/Subcaves | Ambushed by swarm of Subdwellers 3034 | -10/Subcaves | Learned location of Zion (-7) 3034 | -10/Subcaves | Met a Zionite searching for "candidates" 3126 | -10/Subcaves | Lost 3 allies 3132 | -10/Subcaves | Discovered new exit (range 14) 3168 | -10/Subcaves | Identified exit to Recycling 3176 | -10/Subcaves | Entered Recycling 3180 | -7/Recycling | Found Scrap Engine 4015 | -7/Recycling | Discovered new exit (range 16) 4038 | -7/Recycling | Identified exit to Factory 4407 | -7/Recycling | Entered Factory 4407 | -5/Factory | Evolved 10 slots: Power x1, Propulsion x4, Utility x4, Weapon x1 4618 | -5/Factory | Discovered new exit (range 8) 4629 | -5/Factory | Identified exit to Upper Caves 4707 | -5/Factory | First assault squad dispatched 4708 | -5/Factory | Build established: Scavenger-Mutant 4716 | -5/Factory | Lost 3 parts (1n2u) 4877 | -5/Factory | Entered Upper Caves 5029 | -5/Upper Caves | Encountered a Warlord checkpoint 5042 | -5/Upper Caves | Learned 4 Factory zone layouts 5056 | -5/Upper Caves | Discovered new exit (range 9) 5058 | -5/Upper Caves | Identified exit to Upper Caves 5069 | -5/Upper Caves | Attracted the attention of an 0b10 checkpoint 5069 | -5/Upper Caves | Spotted B-75 Beast 5074 | -5/Upper Caves | Entered another Upper Caves area 5075 | -5/Upper Caves | Identified exit to Warlord 5076 | -5/Upper Caves | Attracted the attention of an 0b10 checkpoint 5097 | -5/Upper Caves | Spotted B-75 Beast 5107 | -5/Upper Caves | Build established: Hacker-Mutant 5138 | -5/Upper Caves | Learned 4 Factory zone layouts 5152 | -5/Upper Caves | Encountered a Warlord checkpoint 5306 | -5/Upper Caves | Entered Warlord 5321 | -5/Warlord | Discovered new exit (range 8) 5323 | -5/Warlord | Identified exit to Proximity Caves 5333 | -5/Warlord | System corruption cleaned by Quarantine Array 5448 | -5/Warlord | Met Warlord 5455 | -5/Warlord | Warlord's base attacked by MAIN.C 5623 | -5/Warlord | Spotted B-86 Titan 5658 | -5/Warlord | Lost 4 allies 5739 | -5/Warlord | Found Prototype Energy Gun 5740 | -5/Warlord | Identified Vortex Rifle 5805 | -5/Warlord | Warlord forces counterattacked 5877 | -5/Warlord | Spotted Executioner 5877 | -5/Warlord | Spotted Executioner 5955 | -5/Warlord | Spotted Striker 5961 | -5/Warlord | Entered Proximity Caves 5963 | -4/Proximity Caves | Lost 18 allies 5984 | -4/Proximity Caves | Attracted the attention of an 0b10 checkpoint 6044 | -4/Proximity Caves | Learned Research terminal intel 6046 | -4/Proximity Caves | Spotter reported a threat 6053 | -4/Proximity Caves | Spotted B-86 Titan 6249 | -4/Proximity Caves | Discovered new exit (range 9) 6286 | -4/Proximity Caves | Entered Factory 6286 | -4/Factory | Evolved 2 slots: Propulsion x1, Utility x1 6287 | -4/Factory | Identified exit to Research 6307 | -4/Factory | Spotted B-86 Titan 6335 | -4/Factory | Identified exit to Garrison 6394 | -4/Factory | Discovered new exit (range 9) 6590 | -4/Factory | Build established: Hacker-Sprinter 7112 | -4/Factory | Repaired Adv. Datajack 7160 | -4/Factory | Discovered new exit (range 11) 7178 | -4/Factory | Entered Upper Caves 7181 | -4/Upper Caves | Learned location of 1 exit from Research 7192 | -4/Upper Caves | Attracted the attention of an 0b10 base 7307 | -4/Upper Caves | Self-destructed Last Messages --------------- 07181_ Acquired derelict log, extracted data. Data stored: Research exits (x1). 07182_ Penetrated by Slug. 07189_ G-67 Veteran springs to life. 07207_ Door malfunctions. 07212_ Destroyed Lgt. Nuclear Core. 07214_ Impulse Thruster destroyed. 07217_ S-27 Virus destroyed. 07225_ Autogun fries itself beyond repair. 07230_ Slug penetrates Wall. 07230_ Penetrated by Slug. 07230_ Slug penetrates Wall. 07240_ 4W-XYT(k) breaks down the debris. 07277_ S-27 Virus destroyed. 07282_ S-27 Virus Lgt. Nuclear Core severed. 07285_ Destroyed VTOL Module. 07285_ Imp. Hacking Suite destroyed. 07287_ S-27 Virus destroyed. 07290_ Acquired 17 matter. 07306_ Power Sword destroyed. Map ----- +----------------------------------------------------+ | ???????????????????????????????????????#### | | ???????????????????????????????????????#### | | ????????????????### ??????????????????### # | | ???????????????#### ??????????????????### # | | ??????????????#### ???####??????????### # | | ??????????????### ??#### ??????????### ## | | ??????????????## #### ??????????## =% ### | | ????????????????? ### ????????????## ##=*#### | | ?????????????????? ????????????#####%##### | | ??????????????????? ?????????????#### ##### | | ??????????????????? #???????????#### ## | | ???????????????????## ##???? ######## # | | ??????????????????### ############### # " | | ?????????????????#### ######## ### # " | | ?????????????????### #### " | | ?????????????????## | | ?????????????????## | | ?????????????????## ## ### | | ?????????????????## #### ####### | | ?????????????????## ##### ######## | | ????????????????### #### ##???##### # | | ??????????????##### ### ##??##### | | ??????????????#### ##### ### ###????#### | | ??????????????## ###############?????#### | | ??????????????## ### ########???????#### | | ??????????????## @ ###??????????????#### | | ??????????????### ## s ####???????????????#### | | ??????????????##############??????????????????## | | ???????????????############????????????????????? | | ???????????????????????????????????????????????? | | ???????????????????????????????????????????????? | | ???????????????????????????????????????????????? | | ???????????????????????????????????????????????? | | ???????????????????????????????????????????????? | | ???????????????????????????????????????????????? | | ???????????????????????????????????????????????? | | ???????????????????????????????????????????????? | | ???????????????????????????????????????????????? | | ???????????????????????????????????????????????? | | ???????????????????????????????????????????????? | | ???????????????????????????????????????????????? | | ???????????????????????????????????????????????? | | ???????????????????????????????????????????????? | | | | | | | | | | | | | | | +----------------------------------------------------+ Best States ------------- Heat Dissipation 43 Energy Generation 24 Energy Capacity 315 Matter Stores 300 Matter Capacity 300 Sight Range 22 Terrain Scan Density 210 Jamming Range 12 Armor Coverage 800 Resistance: KI 20 Resistance: TH 20 Resistance: EX 20 Resistance: EM 20 Resistance: I 20 Resistance: S 20 Resistance: P 20 Melee Speed Boost 20 Evasion (%) 63 Recoil Reduction 4 Offensive Hacking 46 Authchip Count 3 Item Schematics ----------------- None Robot Schematics ------------------ None Fabricated ------------ Nothing Alien Tech Used ----------------- None Achievements -------------- A Powerful Ally? Backstab Charge!!! Factory Defaults I'm Back, Baby! It Was An Accident, I Swear Respectable Loadout Shopping List Significant Disruption Slippery One True Hacker Challenges ------------ None Game ------ Seed ThrusterBlastSpoofer Manual? 0 Play Time 04:10:10 Cumulative 8.7 hours Start 2024.04.02 @ 20:05:46 End 2024.04.04 @ 22:55:55 Sessions 14 Manual Loads 0 Difficulty Adventurer Special Mode None Game No. 3 Rogue 0 Adventurer 3 Explorer 0 Win Type - Total 0 Types 0/0/0/0/0/0/0/0/0 Lore% 13 Gallery% 9 Achievement% 14 Wizard Run 0 Options --------- Layout 0 ASCII 0 Keyboard 1 Movement Numpad Keybinds 0 Fullscreen 2 Font 24/Smallcaps Map View 76x50 Zoom Use 23% Tactical HUD 1 Map Filters NONE Filters NONE Steam 1 RUN: 3eff0248-0e8c-4d9d-af4b-9b0b48ceaea4